bitfinex/quotes_SOLUSD_20260211
["timestamp","ask_amount","ask_price","bid_price","bid_amount"]
[1770828294589,13.10099201,79.36,79.276,2.41163977]
[1770828294765,13.10099201,79.36,78.98,110.55929934]
[1770828294766,13.10099201,79.29,79.249,12.61835354]
[1770828294965,6.47030826,79.247,79.246,2.41163977]
[1770828295272,5.36086188,79.324,79.2,13.10099201]
[1770828295273,2.32514417,79.295,79.248,2.18124972]
[1770828295481,31.82,79.294,79.26,13.10099201]
[1770828295666,41.42,79.304,79.271,2.18124972]
[1770828295981,41.44,79.305,79.271,2.18124972]
[1770828296189,2.3382445,79.301,79.261,2.18124972]
[1770828296480,2.3382445,79.266,79.218,2.18124972]
[1770828296793,2.3382445,79.259,79.226,2.18124972]
[1770828296995,2.3382445,79.259,79.23,13.20099201]
[1770828297286,12.6146355,79.273,79.232,2.18124972]
[1770828297484,12.61288532,79.284,79.251,2.18124972]
[1770828297866,2.33794364,79.283,79.251,2.18124972]
[1770828298073,13.10099201,79.28,79.242,47.18]
[1770828298396,12.61288532,79.284,79.251,2.18124972]
[1770828298684,13.10099201,79.28,79.251,2.18124972]
[1770828299184,12.61288532,79.284,79.251,2.18124972]
[1770828299379,54.58099201,79.29,79.251,2.18124972]
[1770828299380,12.61208994,79.289,79.251,2.18124972]
[1770828300186,44.14231481,79.289,79.251,2.18124972]
[1770828300391,12.6104995,79.299,79.261,2.18124972]
[1770828300567,12.60827354,79.313,79.281,2.18124972]
[1770828300969,2.3413868,79.299,79.26,2.18124972]
[1770828301291,2.3413868,79.299,79.264,2.18124972]
[1770828301586,12.61100378,79.296,79.261,2.18124972]
[1770828301785,13.10099201,79.29,79.261,2.18124972]
[1770828302183,13.10099201,79.3,79.261,2.18124972]
[1770828302491,13.10099201,79.3,79.262,2.18124972]
[1770828302789,2.34057825,79.279,79.232,2.18124972]
[1770828302995,2.34057825,79.26,79.23,0.1]
[1770828303185,2.34057825,79.26,79.231,14.80257218]
[1770828303186,13.10099201,79.26,79.231,14.80257218]
[1770828303377,2.34017832,79.29,79.24,13.10099201]
[1770828303698,63.53003725,79.32,79.233,12.62100387]
[1770828303699,13.10099201,79.27,79.241,2.18124972]
[1770828304192,2.34017832,79.267,79.232,2.18124972]
[1770828304375,13.10099201,79.26,79.232,2.18124972]
[1770828304573,13.10099201,79.27,79.232,2.18124972]
[1770828305794,13.10099201,79.26,79.234,2.18124972]
[1770828306094,13.10099201,79.27,79.234,2.18124972]
[1770828306697,13.10099201,79.25,79.23,2.28124972]
[1770828306878,2.33897279,79.268,79.23,15.40844916]
[1770828307081,13.12719944,79.26,79.232,2.18124972]
[1770828307481,13.12719944,79.25,79.23,12.72139028]
[1770828307694,15.46569496,79.26,79.23,12.72139028]
[1770828307897,12.6168637,79.259,79.23,0.1]
[1770828308113,13.12719944,79.25,79.23,0.1]
[1770828308698,13.12719944,79.28,79.231,2.18124972]
[1770828308879,13.12719944,79.26,79.233,2.18124972]
[1770828309282,2.33753616,79.269,79.233,2.18124972]
[1770828309479,13.12719944,79.26,79.233,2.18124972]
[1770828309891,12.6168637,79.259,79.233,2.18124972]
[1770828310601,13.12719944,79.26,79.235,2.18124972]
[1770828310801,13.12719944,79.27,79.241,2.18124972]
[1770828311100,12.61272624,79.285,79.241,2.18124972]
[1770828311281,13.12719944,79.29,79.251,2.18124972]
[1770828311480,13.12719944,79.29,79.253,2.18124972]
[1770828311891,13.12719944,79.28,79.253,2.18124972]
[1770828312097,12.61368079,79.279,79.255,2.18124972]
[1770828312300,13.12719944,79.27,79.255,2.18124972]
[1770828312702,13.12719944,79.27,79.252,47.1]
[1770828312900,13.12719944,79.28,79.254,2.18124972]
[1770828313690,13.12719944,79.29,79.254,2.18124972]
[1770828314101,13.12719944,79.28,79.256,2.18124972]
[1770828314885,13.12719944,79.27,79.249,12.61842421]
[1770828315086,13.12719944,79.28,79.25,2.18124972]
[1770828315812,13.12719944,79.27,79.25,2.18124972]
[1770828315997,13.12719944,79.28,79.25,2.18124972]
[1770828316506,5.36086188,79.317,79.25,2.18124972]
[1770828316507,2.33387266,79.307,79.261,2.18124972]
[1770828316711,13.12719944,79.3,79.263,2.18124972]
[1770828317409,14.94282643,79.309,79.263,2.18124972]
[1770828317611,13.12719944,79.31,79.271,2.18124972]
[1770828317793,41.26,79.317,79.273,2.18124972]
[1770828317794,13.12719944,79.3,79.273,2.18124972]
[1770828318603,13.12719944,79.31,79.275,2.18124972]
[1770828318996,13.12719944,79.31,79.277,2.18124972]
[1770828320714,12.60890945,79.309,79.277,2.18124972]
[1770828320918,12.60890945,79.309,79.278,2.34958652]
[1770828321120,12.60890945,79.309,79.279,2.34958652]
[1770828321413,2.3354607,79.316,79.279,2.34958652]
[1770828321796,41.26,79.317,79.279,2.34958652]
[1770828322010,13.12719944,79.31,79.279,2.34958652]
[1770828322805,41.2,79.336,79.276,47.04]
[1770828322806,13.12719944,79.32,79.281,2.34958652]
[1770828323126,2.34250018,79.319,79.281,2.34958652]
[1770828323703,13.12719944,79.32,79.281,2.34958652]
[1770828323902,14.94877918,79.326,79.291,2.34958652]
[1770828324125,12.606279,79.326,79.291,2.34958652]
[1770828324305,13.12719944,79.33,79.291,2.34958652]
[1770828324507,13.12719944,79.33,79.293,2.34958652]
[1770828324808,2.34250018,79.335,79.294,44.13953135]
[1770828325001,2.34250018,79.335,79.295,2.34958652]
[1770828325194,14.94736078,79.335,79.295,2.34958652]
[1770828325395,2.34387398,79.329,79.296,46.94]
[1770828325609,12.6048606,79.335,79.277,2.34958652]
[1770828325610,2.34387398,79.309,79.277,2.34958652]
[1770828325816,2.34387398,79.319,79.279,2.34958652]
[1770828326004,2.34387398,79.319,79.281,2.34958652]
[1770828326197,13.12719944,79.32,79.281,2.34958652]
[1770828326998,12.6073198,79.319,79.283,2.30055395]
[1770828327600,12.6073198,79.319,79.285,2.30055395]
[1770828328015,2.16087611,79.326,79.286,46.94]
[1770828328213,2.16087611,79.326,79.284,2.30055395]
[1770828328214,13.12719944,79.31,79.284,46.94]
[1770828328415,13.12719944,79.32,79.285,2.30055395]
[1770828328612,13.12719944,79.31,79.286,46.96]
[1770828328810,13.12719944,79.31,79.286,49.26055395]
[1770828329008,13.12719944,79.31,79.287,12.61240808]
[1770828329417,13.12719944,79.31,79.287,14.91296203]
[1770828329621,12.60747875,79.318,79.287,14.91296203]
[1770828330424,13.12719944,79.3,79.242,2.30055395]
[1770828330607,13.12719944,79.3,79.269,2.30055395]
[1770828330919,50.41846014,79.337,79.271,2.30055395]
[1770828330920,44.13173954,79.308,79.271,2.30055395]
[1770828331102,15.28807555,79.3,79.272,46.94]
[1770828331298,2.16087611,79.299,79.27,12.61509318]
[1770828332006,2.16087611,79.299,79.269,46.94]
[1770828332007,2.16087611,79.289,79.269,46.94]
[1770828332208,2.16087611,79.289,79.256,46.94]
[1770828332407,44.13173954,79.308,79.239,31.55010489]
[1770828332408,15.28807555,79.28,79.252,2.30055395]
[1770828332707,2.16087611,79.279,79.249,12.61831863]
[1770828332903,13.12719944,79.27,79.247,46.94]
[1770828333109,2.16087611,79.268,79.236,12.62049711]
[1770828333312,13.12719944,79.27,79.238,2.30055395]
[1770828333921,13.12719944,79.28,79.241,2.30055395]
[1770828334728,13.12719944,79.28,79.243,2.30055395]
[1770828334936,13.12719944,79.31,79.271,2.30055395]
[1770828335127,13.12719944,79.31,79.23,0.1]
[1770828335128,2.16087611,79.289,79.264,46.92]
[1770828335332,13.12719944,79.28,79.256,59.55727236]
[1770828335831,13.12719944,79.28,79.256,46.94]
[1770828336243,13.12719944,79.28,79.251,59.55809838]
[1770828336620,13.12719944,79.28,79.252,2.30055395]
[1770828336922,2.16087611,79.289,79.252,2.30055395]
[1770828337136,13.12719944,79.28,79.254,2.30055395]
[1770828337432,12.61303053,79.284,79.256,2.30055395]
[1770828337620,13.12719944,79.28,79.256,2.30055395]
[1770828337818,12.61303053,79.284,79.256,2.30055395]
[1770828338223,2.16087611,79.318,79.271,2.30055395]
[1770828338421,13.12719944,79.31,79.273,2.30055395]
[1770828338956,2.16087611,79.325,79.281,2.30055395]
[1770828339126,12.60489905,79.335,79.291,2.30055395]
[1770828339435,12.60489905,79.335,79.29,13.12719944]
[1770828339436,13.12719944,79.33,79.293,2.30055395]
[1770828340016,13.12719944,79.33,79.261,100.93220508]
[1770828340017,13.12719944,79.3,79.278,14.91431637]
[1770828340237,15.28807555,79.31,79.279,46.92]
[1770828340836,15.28807555,79.31,79.28,46.92]
[1770828341032,13.12719944,79.31,79.281,14.91391654]
[1770828341243,2.16087611,79.319,79.281,14.91391654]
[1770828341244,2.16087611,79.319,79.282,2.30055395]
[1770828341429,2.16087611,79.319,79.284,2.30055395]
[1770828341629,13.12719944,79.32,79.284,2.30055395]
[1770828341834,13.12719944,79.32,79.286,2.30055395]
[1770828342018,25.73290852,79.33,79.291,2.30055395]
[1770828342337,25.73290852,79.33,79.29,13.12719944]
[1770828342338,13.12719944,79.33,79.293,2.30055395]
[1770828342539,2.16087611,79.339,79.301,2.30055395]
[1770828342741,13.12719944,79.34,79.301,2.30055395]
[1770828342923,13.12719944,79.34,79.303,2.30055395]
[1770828343646,13.12719944,79.34,79.302,46.88]
[1770828343647,13.12719944,79.34,79.305,2.30055395]
[1770828343946,40.78,79.357,79.282,2.30055395]
[1770828343947,2.16087611,79.319,79.282,2.30055395]
[1770828344243,44.11449602,79.339,79.255,50.46955456]
[1770828344244,13.12719944,79.33,79.291,2.30055395]
[1770828344429,2.16087611,79.329,79.293,2.30055395]
[1770828346647,2.16087611,79.348,79.295,2.30055395]
[1770828346822,13.12719944,79.33,79.301,2.30055395]
[1770828347026,15.28807555,79.33,79.301,2.30055395]
[1770828347228,2.16087611,79.329,79.296,46.86]
[1770828347428,12.60341434,79.344,79.296,46.86]
[1770828347429,2.16087611,79.319,79.296,46.86]
[1770828347624,2.16087611,79.309,79.261,2.30055395]
[1770828347934,13.12719944,79.3,79.263,2.30055395]
[1770828348332,2.16087611,79.309,79.263,2.30055395]
[1770828348535,15.28807555,79.32,79.281,2.30055395]
[1770828348739,15.28807555,79.32,79.246,31.54733361]
[1770828348740,2.16087611,79.317,79.283,2.30055395]
[1770828348943,13.12719944,79.32,79.285,2.30055395]
[1770828349136,25.7344797,79.32,79.285,2.30055395]
[1770828349330,12.60662912,79.324,79.285,2.30055395]
[1770828349539,12.60662912,79.324,79.287,2.30055395]
[1770828349736,13.12719944,79.33,79.291,2.30055395]
[1770828349926,12.60513554,79.333,79.292,46.82]
[1770828350134,13.12719944,79.33,79.293,2.30055395]
[1770828350526,12.60513554,79.333,79.293,2.30055395]
[1770828350722,15.28189155,79.33,79.295,2.23296193]
[1770828350926,2.15469211,79.342,79.301,2.23296193]
[1770828351450,12.603824,79.341,79.301,2.23296193]
[1770828351638,13.12719944,79.34,79.301,2.23296193]
[1770828352448,2.15469211,79.342,79.301,2.23296193]
[1770828352628,13.12719944,79.34,79.301,2.23296193]
[1770828352938,14.75883383,79.339,79.303,2.23296193]
[1770828353161,2.15469211,79.338,79.303,2.23296193]
[1770828353940,13.12719944,79.33,79.303,2.23296193]
[1770828354242,2.15469211,79.338,79.303,2.23296193]
[1770828354243,12.6047437,79.336,79.304,12.60970442]
[1770828354549,14.75943581,79.336,79.304,14.84266635]
[1770828354751,2.15469211,79.336,79.304,14.84266635]
[1770828355042,14.75938611,79.336,79.304,14.84266635]
[1770828355249,2.15469211,79.336,79.305,2.23296193]
[1770828356843,2.15469211,79.336,79.307,2.23296193]
[1770828358648,12.60420332,79.339,79.307,2.23296193]
[1770828358850,13.12719944,79.34,79.309,2.23296193]
[1770828359753,2.15469211,79.342,79.309,2.23296193]
[1770828361047,2.15469211,79.339,79.31,12.60875047]
[1770828361242,2.15469211,79.349,79.311,2.23296193]
[1770828361449,2.15469211,79.329,79.298,2.23296193]
[1770828361655,2.15469211,79.329,79.299,46.76]
[1770828362753,2.15469211,79.329,79.3,2.23296193]
[1770828363059,12.60430058,79.338,79.303,2.23296193]
[1770828363242,2.15469211,79.337,79.303,2.23296193]
[1770828363638,53.14376269,79.342,79.311,2.23296193]
[1770828363946,2.15469211,79.359,79.321,2.23296193]
[1770828364129,2.15469211,79.359,79.323,2.23296193]
[1770828364333,2.15469211,79.349,79.322,46.74]
[1770828364635,2.15469211,79.339,79.322,46.74]
[1770828365035,2.15469211,79.349,79.322,46.74]
[1770828365236,2.15469211,79.349,79.282,50.45249621]
[1770828365237,2.15469211,79.329,79.295,2.23296193]
[1770828365545,13.12719944,79.32,79.296,46.74]
[1770828365735,2.15469211,79.329,79.296,46.74]
[1770828365736,2.15469211,79.329,79.297,2.23296193]
[1770828365941,2.15469211,79.337,79.297,2.23296193]
[1770828366636,2.15469211,79.337,79.301,2.23296193]
[1770828367159,13.12719944,79.34,79.301,2.23296193]
[1770828367353,12.60414172,79.339,79.302,12.61002244]
[1770828367559,12.60414172,79.339,79.303,2.23296193]
[1770828368853,12.60332328,79.345,79.311,2.23296193]
[1770828369335,14.75801539,79.345,79.311,2.23296193]
[1770828369535,14.75801539,79.345,79.313,2.23296193]
[1770828370748,12.60262293,79.349,79.314,46.78]
[1770828370956,12.60262293,79.349,79.315,2.23296193]
[1770828371149,13.0972622,79.35,79.315,2.23296193]
[1770828371361,12.60236672,79.351,79.315,2.23296193]
[1770828371757,2.15469211,79.349,79.317,2.23296193]
[1770828373061,2.15469211,79.356,79.321,2.23296193]
[1770828373269,40.58,79.362,79.321,2.23296193]
[1770828373473,13.0972622,79.36,79.323,2.23296193]
[1770828373770,12.60096523,79.359,79.325,2.23296193]
[1770828373970,2.15469211,79.349,79.322,46.82]
[1770828374163,2.15469211,79.358,79.323,12.60668406]
[1770828374353,12.60037208,79.363,79.324,2.23296193]
[1770828374555,2.15469211,79.364,79.324,2.23296193]
[1770828374859,2.15469211,79.38,79.341,2.23296193]
[1770828375054,2.15469211,79.379,79.343,2.23296193]
[1770828375452,2.15469211,79.379,79.292,4.61729252]
[1770828375453,40.6,79.386,79.351,2.23296193]
[1770828375667,2.15469211,79.39,79.361,2.23296193]
[1770828375852,2.15469211,79.389,79.361,2.23296193]
[1770828376575,13.0972622,79.39,79.361,2.23296193]
[1770828377167,2.15469211,79.399,79.361,2.23296193]
[1770828377479,2.15469211,79.389,79.361,2.23296193]
[1770828377955,2.15469211,79.369,79.341,2.23296193]
[1770828378268,2.15469211,79.369,79.331,2.23296193]
[1770828378466,13.0972622,79.38,79.341,2.23296193]
[1770828378769,2.15469211,79.369,79.341,2.23296193]
[1770828378954,2.15469211,79.377,79.341,2.23296193]
[1770828379154,13.0972622,79.38,79.341,2.23296193]
[1770828379468,13.0972622,79.38,79.343,2.23296193]
[1770828379660,2.15469211,79.385,79.351,2.23296193]
[1770828380069,13.0972622,79.39,79.351,2.23296193]
[1770828380574,2.15469211,79.393,79.361,2.22913246]
[1770828380871,13.0972622,79.4,79.361,2.22913246]
[1770828381066,2.24498622,79.399,79.361,2.22913246]
[1770828382067,2.24498622,79.389,79.361,2.22913246]
[1770828383057,13.0972622,79.39,79.361,2.22913246]
[1770828383260,2.24498622,79.409,79.371,2.22913246]
[1770828383657,0.2,79.41,79.38,13.0972622]
[1770828383974,0.2,79.41,79.381,2.22913246]
[1770828385256,13.2972622,79.41,79.381,2.22913246]
[1770828385769,2.24498622,79.409,79.381,2.22913246]
[1770828385971,15.34224842,79.39,79.361,2.22913246]
[1770828386175,2.24498622,79.39,79.361,2.22913246]
[1770828386355,2.24498622,79.409,79.37,13.0972622]
[1770828386555,2.24498622,79.409,79.371,2.22913246]
[1770828386957,13.0972622,79.39,79.361,2.36291367]
[1770828387176,2.21611318,79.379,79.341,2.36291367]
[1770828388653,2.21611318,79.379,79.332,46.7]
[1770828388654,2.21611318,79.369,79.332,49.06291367]
[1770828388966,2.21611318,79.369,79.333,2.36291367]
[1770828389165,2.21611318,79.359,79.332,46.7]
[1770828389368,13.0972622,79.36,79.325,2.36291367]
[1770828389674,13.0972622,79.35,79.325,2.36291367]
[1770828390081,2.21611318,79.351,79.325,2.36291367]
[1770828390384,2.21611318,79.359,79.325,2.36291367]
[1770828390561,15.31337538,79.34,79.311,2.36291367]
[1770828390761,2.21611318,79.329,79.302,2.36291367]
[1770828391579,13.0972622,79.32,79.291,2.36291367]
[1770828392288,13.0972622,79.3,79.274,2.36291367]
[1770828392463,2.21611318,79.309,79.274,2.36291367]
[1770828392667,2.21611318,79.318,79.274,2.36291367]
[1770828392869,13.0972622,79.31,79.281,2.36291367]
[1770828393169,2.21611318,79.318,79.281,2.36291367]
[1770828393364,13.0972622,79.31,79.281,2.36291367]
[1770828393680,13.0972622,79.32,79.281,2.36291367]
[1770828393866,2.21611318,79.319,79.281,2.36291367]
[1770828394072,13.0972622,79.31,79.281,2.36291367]
[1770828394968,13.0972622,79.3,79.271,2.36291367]
[1770828395361,2.21611318,79.299,79.271,2.36291367]
[1770828395567,2.21611318,79.299,79.27,46.68]
[1770828395774,13.0972622,79.29,79.263,2.36291367]
[1770828396170,2.21611318,79.291,79.263,2.36291367]
[1770828396668,13.0972622,79.29,79.263,2.36291367]
[1770828397076,2.21611318,79.299,79.263,2.36291367]
[1770828397590,2.21611318,79.309,79.27,13.0972622]
[1770828398877,2.21611318,79.299,79.26,13.0972622]
[1770828399376,2.21611318,79.289,79.26,2.36291367]
[1770828401174,13.0972622,79.3,79.261,2.36291367]
[1770828401691,2.21611318,79.316,79.203,4.61729252]
[1770828401889,2.21611318,79.289,79.25,13.0972622]
[1770828402676,13.0972622,79.29,79.25,13.0972622]
[1770828403196,2.21611318,79.298,79.26,13.0972622]
[1770828403392,2.21611318,79.298,79.27,13.0972622]
[1770828403604,2.21611318,79.331,79.28,13.0972622]
[1770828403892,4.61729252,79.338,79.267,2.36291367]
[1770828403893,2.21611318,79.299,79.267,2.36291367]
[1770828404094,2.21611318,79.299,79.233,2.36291367]
[1770828404281,2.21611318,79.279,79.241,2.36291367]
[1770828404480,2.21611318,79.269,79.241,2.36291367]
[1770828404683,2.21611318,79.269,79.234,46.62]
[1770828404985,2.21611318,79.269,79.234,2.36291367]
[1770828406397,2.21611318,79.269,79.241,2.36291367]
[1770828406597,13.0972622,79.27,79.241,2.36291367]
[1770828408380,4.61729252,79.305,79.241,2.36291367]
[1770828408381,13.0972622,79.28,79.241,2.36291367]
[1770828408579,2.21611318,79.279,79.241,2.36291367]
[1770828409794,2.21611318,79.289,79.251,2.36291367]
[1770828409991,2.21611318,79.299,79.251,2.36291367]
[1770828410892,2.29498801,79.308,79.271,2.24915088]
[1770828412686,2.29498801,79.319,79.281,2.24915088]
[1770828412889,13.0972622,79.33,79.291,2.24915088]
[1770828413077,2.29498801,79.329,79.291,2.24915088]
[1770828413281,2.29498801,79.319,79.28,13.0972622]
[1770828413496,2.29498801,79.319,79.281,2.24915088]
[1770828413702,47.55877053,79.36,79.291,2.24915088]
[1770828413703,2.29498801,79.328,79.291,2.24915088]
[1770828414682,2.29498801,79.339,79.301,2.24915088]
[1770828415275,2.29498801,79.359,79.32,15.34641308]
[1770828415499,2.29498801,79.359,79.32,2.24915088]
[1770828416001,13.0972622,79.35,79.32,2.24915088]
[1770828416383,2.29498801,79.351,79.321,2.24915088]
[1770828417590,2.29498801,79.349,79.321,2.24915088]
[1770828417883,13.0972622,79.33,79.301,2.24915088]
[1770828418680,2.29498801,79.329,79.291,2.24915088]
[1770828419691,2.29498801,79.319,79.283,2.24915088]
[1770828420289,2.29498801,79.339,79.301,2.24915088]
[1770828420500,2.29498801,79.346,79.301,2.24915088]
[1770828420700,13.0972622,79.34,79.301,2.24915088]
[1770828421006,2.29498801,79.339,79.301,2.24915088]
[1770828424412,15.39225021,79.3,79.261,2.24915088]
[1770828424589,2.29498801,79.3,79.261,2.24915088]
[1770828424910,2.29498801,79.3,79.271,2.24915088]
[1770828425393,2.29498801,79.3,79.26,13.0972622]
[1770828425394,2.29498801,79.339,79.291,2.24915088]
[1770828425583,2.29498801,79.339,79.301,2.24915088]
[1770828427809,2.29498801,79.349,79.311,2.24915088]
[1770828428108,2.29498801,79.359,79.321,2.24915088]
[1770828428613,2.29498801,79.359,79.331,2.24915088]
[1770828429615,2.29498801,79.349,79.291,2.24915088]
[1770828429791,2.29498801,79.339,79.303,2.24915088]
[1770828430110,2.29498801,79.339,79.31,13.09370321]
[1770828430307,2.29498801,79.339,79.303,2.24915088]
[1770828431009,13.09370321,79.33,79.303,2.24915088]
[1770828431304,2.29498801,79.339,79.303,2.24915088]
[1770828433395,2.29498801,79.349,79.321,2.24915088]
[1770828434988,2.29498801,79.339,79.297,2.24915088]
[1770828435190,2.29498801,79.309,79.271,2.24915088]
[1770828436007,2.29498801,79.347,79.301,2.24915088]
[1770828436406,2.29498801,79.347,79.311,2.24915088]
[1770828437110,13.09370321,79.35,79.311,2.24915088]
[1770828437312,15.38869122,79.35,79.311,2.24915088]
[1770828437512,2.29498801,79.349,79.311,2.24915088]
[1770828438203,13.09370321,79.35,79.311,2.24915088]
[1770828438408,13.09370321,79.36,79.321,2.24915088]
[1770828438612,2.29498801,79.359,79.321,2.24915088]
[1770828438802,13.09370321,79.38,79.341,2.24915088]
[1770828439203,13.09370321,79.37,79.341,2.24915088]
[1770828439412,2.29498801,79.379,79.341,2.24915088]
[1770828439806,13.09370321,79.38,79.341,2.24915088]
[1770828440613,2.29498801,79.389,79.341,2.24915088]
[1770828440803,0.2,79.4,79.36,13.09370321]
[1770828440804,2.27567462,79.399,79.36,13.09370321]
[1770828441007,2.27567462,79.399,79.361,2.25567092]
[1770828441199,13.09370321,79.39,79.361,2.25567092]
[1770828441397,15.36937783,79.39,79.361,2.25567092]
[1770828441597,2.27567462,79.389,79.361,2.25567092]
[1770828441816,0.2,79.4,79.38,13.09370321]
[1770828442003,0.2,79.4,79.381,2.25567092]
[1770828444301,0.2,79.41,79.391,2.25567092]
[1770828444812,0.2,79.42,79.401,2.25567092]
[1770828445203,0.2,79.42,79.391,2.25567092]
[1770828445408,0.2,79.42,79.401,2.25567092]
[1770828445996,0.2,79.42,79.391,2.25567092]
[1770828447840,2.37894093,79.42,79.364,45.72]
[1770828448002,2.17894093,79.419,79.381,2.35840391]
[1770828448204,0.2,79.42,79.401,2.35840391]
[1770828448819,0.2,79.42,79.391,2.35840391]
[1770828449014,2.37894093,79.42,79.391,2.35840391]
[1770828449218,2.17894093,79.419,79.382,2.35840391]
[1770828449806,2.17894093,79.399,79.361,2.35840391]
[1770828450520,13.29370321,79.42,79.381,2.35840391]
[1770828450736,0.2,79.42,79.401,2.35840391]
[1770828450918,2.85142055,79.436,79.401,2.35840391]
[1770828452519,2.85142055,79.436,79.411,2.35840391]
[1770828453722,2.85142055,79.436,79.401,2.35840391]
[1770828454629,2.85142055,79.436,79.411,2.35840391]
[1770828454826,5.03036148,79.436,79.402,2.35840391]
[1770828455441,2.85142055,79.436,79.402,2.35840391]
[1770828455615,2.85142055,79.436,79.411,2.35840391]
[1770828455811,2.85142055,79.436,79.401,2.35840391]
[1770828457231,2.17894093,79.435,79.401,2.35840391]
[1770828457420,2.85142055,79.436,79.401,2.35840391]
[1770828458831,2.17894093,79.435,79.401,2.35840391]
[1770828459411,13.09370321,79.43,79.401,2.35840391]
[1770828459612,15.27264414,79.43,79.401,2.35840391]
[1770828460016,2.17894093,79.429,79.391,2.35840391]
[1770828460210,2.17894093,79.409,79.354,2.35840391]
[1770828460414,2.17894093,79.409,79.326,56.76]
[1770828460415,2.17894093,79.399,79.361,2.35840391]
[1770828462635,13.09370321,79.41,79.371,2.35840391]
[1770828463435,13.09370321,79.42,79.381,2.35840391]
[1770828463636,2.17894093,79.419,79.381,2.35840391]
[1770828464137,13.09370321,79.41,79.372,2.35840391]
[1770828464336,2.17894093,79.409,79.372,2.35840391]
[1770828464519,2.17894093,79.409,79.38,13.09370321]
[1770828464718,13.09370321,79.42,79.381,2.35840391]
[1770828464919,15.27264414,79.42,79.381,2.35840391]
[1770828465119,2.17894093,79.42,79.391,2.35840391]
[1770828465623,0.2,79.44,79.411,2.35840391]
[1770828466844,2.17894093,79.435,79.402,2.35840391]
[1770828467142,2.17894093,79.419,79.38,13.09370321]
[1770828467317,2.17894093,79.435,79.4,13.09370321]
[1770828467936,13.09370321,79.42,79.353,4.61729252]
[1770828468143,2.17894093,79.419,79.38,13.09370321]
[1770828469033,2.17894093,79.428,79.391,2.35840391]
[1770828469343,2.17894093,79.428,79.4,15.45210712]
[1770828469544,2.17894093,79.428,79.4,2.35840391]
[1770828470421,2.17894093,79.428,79.401,2.3088684]
[1770828470632,2.37477521,79.429,79.401,2.3088684]
[1770828471142,13.29370321,79.44,79.367,18.22]
[1770828471143,2.37477521,79.438,79.411,2.3088684]
[1770828471731,2.37477521,79.435,79.402,2.3088684]
[1770828472048,2.37477521,79.429,79.391,2.3088684]
[1770828474030,2.37477521,79.439,79.401,2.3088684]
[1770828474233,13.09370321,79.43,79.401,2.3088684]
[1770828474546,2.37477521,79.419,79.381,2.3088684]
[1770828475048,2.37477521,79.409,79.381,2.3088684]
[1770828475444,2.37477521,79.419,79.381,2.3088684]
[1770828475649,14.96637912,79.418,79.383,2.3088684]
[1770828475849,2.37477521,79.417,79.383,2.3088684]
[1770828476053,2.37477521,79.389,79.362,14.90933704]
[1770828476353,2.37477521,79.389,79.32,63.5221187]
[1770828476354,2.37477521,79.369,79.322,2.3088684]
[1770828476536,5.36086188,79.392,79.322,2.3088684]
[1770828476537,2.37477521,79.359,79.322,2.3088684]
[1770828477147,13.09370321,79.35,79.322,2.3088684]
[1770828477851,13.09370321,79.35,79.311,31.5212532]
[1770828477852,12.60173717,79.355,79.324,2.3088684]
[1770828478049,14.97651238,79.355,79.324,2.3088684]
[1770828478756,14.97651238,79.355,79.29,50.44757766]
[1770828478757,15.46847842,79.34,79.314,2.3088684]
[1770828479142,2.37477521,79.34,79.315,12.60795561]
[1770828479653,2.37477521,79.329,79.296,2.3088684]
[1770828479856,2.37477521,79.329,79.297,12.61081755]
[1770828480042,2.37477521,79.329,79.298,2.3088684]
[1770828480246,2.37477521,79.349,79.311,2.3088684]
[1770828480843,13.09370321,79.34,79.311,2.3088684]
[1770828481158,13.09370321,79.32,79.293,12.61138924]
[1770828481462,13.09370321,79.32,79.282,12.6132035]
[1770828481843,2.37477521,79.33,79.303,2.3088684]
[1770828482043,2.37477521,79.33,79.311,2.3088684]
[1770828482739,2.37477521,79.339,79.311,2.3088684]
[1770828482933,2.37477521,79.338,79.302,12.61002244]
[1770828483761,2.37477521,79.349,79.311,2.3088684]
[1770828483957,2.37477521,79.349,79.32,13.09370321]
[1770828484156,14.97574044,79.359,79.321,2.3088684]
[1770828484349,13.09370321,79.35,79.321,2.3088684]
[1770828484656,2.37477521,79.339,79.31,2.3088684]
[1770828484880,2.37477521,79.358,79.321,2.3088684]
[1770828485154,12.60096523,79.359,79.311,2.3088684]
[1770828485155,2.37477521,79.349,79.311,2.3088684]
[1770828486256,2.37477521,79.354,79.321,2.3088684]
[1770828486656,13.09370321,79.35,79.321,2.3088684]
[1770828486857,2.37477521,79.354,79.299,45.04]
[1770828486858,2.37477521,79.339,79.308,12.60902242]
[1770828487056,2.37477521,79.348,79.311,2.3088684]
[1770828487257,2.37477521,79.358,79.321,2.3088684]
[1770828488244,2.37477521,79.358,79.323,2.3088684]
[1770828490062,12.60128281,79.357,79.323,2.3088684]
[1770828490256,13.09370321,79.34,79.292,2.3088684]
[1770828490462,2.37477521,79.356,79.321,2.3088684]
[1770828490777,2.37477521,79.349,79.311,2.3088684]
[1770828491853,2.37477521,79.339,79.311,2.3088684]